Cogmind - Beta 13 @@@ ROGUE MODE // 2024.05.16 @ 03:02:21 Player: LVL98_Snorlax Result: Destroyed by GL-ME8(f) with Tearclaws Performance ------------- Evolutions (3) 1500 Regions Visited (10) 2000 Robots Destroyed (78) 390 Value Destroyed (3201) 3201 Prototype IDs (4) 80 Alien Tech Used (0) 0 Bonus (188) 188 TOTAL SCORE: 7359 Bonus ------- High Alert Combat Kills 156 Follower Combat Kills 99 Friendly Fire -67 Cogmind --------- Core Integrity 0/700 Matter 192/300 Energy 99/100 System Corruption 19% Temperature Cool (0) Movement Core (50) Location -7/Lower Caves Parts ------- > --- POWER (2) -------- (None) > --- PROPULSION (3) --- (None) > --- UTILITY (5) ------ (None) > --- WEAPON (3) ------- (None) > --- INVENTORY (5) ---- (None) Peak State ------------ > --- POWER ------------ Improved Ion Engine Heavy Ion Engine > --- PROPULSION ------- Carbon-fiber Leg Carbon-fiber Leg Carbon-fiber Leg > --- UTILITY ---------- Large Storage Unit Improved Sensor Array Improved Signal Interpreter Heavy Armor Plating > --- WEAPON ----------- Heavy Ion Cannon Cooled Particle Cannon Heavy Rocket Launcher > --- INVENTORY -------- Light Nuclear Core Light Nuclear Core Light Nuclear Core Carbon-fiber Leg Improved Heat Sink Improved Heat Sink Improved Heat Sink Coolant Injector Compact Matter Pod Compact Matter Pod Heavy Laser Enhanced Autogun Gauss Rifle Assault Cannon Proton Missile Launcher [Rating: 45] Favorites ----------- Power Light Deuterium Engine Engine Light Deuterium Engine Power Core Light Nuclear Core Propulsion Carbon-fiber Leg Treads Light Treads Leg Carbon-fiber Leg Utility Improved Heat Sink Device Improved Heat Sink Storage Large Storage Unit Processor Improved Signal Interpreter Hackware Hacking Suite Protection Heavy Armor Plating Weapon Heavy Ion Cannon Energy Gun Heavy EM Pulse Gun Energy Cannon Heavy Ion Cannon Ballistic Gun High-powered Shotgun Ballistic Cannon Improved Light Cannon Launcher Heavy Rocket Launcher Build | -11 -10 -10 -9 -9 -8 -8 -7 -7 -7 -7 ------- Run | Yrd Mat Min Mat Min Mat Sto Fac Was Fac Low Slots Evolved 6 | . . . 2 . 2 . 2 . . . Power 1 | . . . 1 . . . . . . . Propulsion 1 | . . . . . 1 . . . . . Utility 3 | . . . . . 1 . 2 . . . Weapon 1 | . . . 1 . . . . . . . Parts Attached 123 | 5 12 . 14 16 26 19 19 7 5 . Power 25 | 1 3 . 4 2 6 4 4 1 . . Engine 16 | 1 3 . 4 2 2 2 1 1 . . Core 9 | . . . . . 4 2 3 . . . Reactor . | . . . . . . . . . . . Propulsion 20 | 2 2 . . 4 7 4 1 . . . Treads 5 | . 2 . . 2 1 . . . . . Leg 15 | 2 . . . 2 6 4 1 . . . Wheel . | . . . . . . . . . . . Hover . | . . . . . . . . . . . Flight . | . . . . . . . . . . . Utility 33 | . 3 . 5 2 7 4 8 3 1 . Device 15 | . . . 3 . 5 2 4 1 . . Storage 5 | . 2 . . . 1 . . 2 . . Processor 2 | . . . 1 . . . 1 . . . Hackware 2 | . . . . . . 1 . . 1 . Protection 9 | . 1 . 1 2 1 1 3 . . . Artifact . | . . . . . . . . . . . Weapon 45 | 2 4 . 5 8 6 7 6 3 4 . Energy Gun 15 | 2 3 . 4 3 1 1 1 . . . Energy Cannon 3 | . . . . 1 . 1 1 . . . Ballistic Gun 13 | . . . 1 3 . 2 1 3 3 . Ballistic Cannon 10 | . . . . . 5 3 2 . . . Launcher 4 | . 1 . . 1 . . 1 . 1 . Special Weapon . | . . . . . . . . . . . Impact Weapon . | . . . . . . . . . . . Slashing Weapon . | . . . . . . . . . . . Piercing Weapon . | . . . . . . . . . . . Special Melee Weapon . | . . . . . . . . . . . Unidentified Prototypes 4 | . . . . . 1 2 1 . . . Parts Lost 35 | . 2 . . 6 1 5 8 8 3 2 Power 8 | . 1 . . 1 . 2 2 2 . . Propulsion 7 | . . . . 3 . 1 3 . . . Utility 6 | . . . . . 1 . 2 2 1 . Weapon 14 | . 1 . . 2 . 2 1 4 2 2 Highest Loss Streak 7 | . 2 . . 3 1 5 3 7 2 2 To Critical Strikes . | . . . . . . . . . . . Average Slot Usage (%) 87 | . 90 100 100 96 99 99 90 27 26 10 Engine 12 | . 14 14 22 21 9 10 9 2 . . Core 3 | . . . . . 8 7 4 2 . . Treads 4 | . 10 28 22 8 1 . . . . . Leg 15 | . 17 . . 11 25 27 19 2 . . Device 9 | . . . 8 2 14 15 15 9 . . Storage 8 | . 13 14 11 11 9 9 6 . . . Processor 1 | . . . 1 . . . 4 . . . Protection 4 | . 5 14 1 8 3 1 4 . . . Energy Gun 7 | . 26 28 26 13 2 . . 2 . . Energy Cannon 6 | . . . . 3 2 7 13 . . . Ballistic Gun 6 | . . . 6 13 2 7 1 5 22 5 Ballistic Cannon 3 | . . . . . 20 12 . 2 . . Launcher 2 | . 1 . . 1 . . 5 . . 5 Naked Turns 73 | . . . . . . . . 43 11 19 Heaviest Build 74 | 7 27 22 33 42 51 57 74 28 13 10 Greatest Support 49 | 20 40 40 40 40 49 49 45 15 3 3 Greatest Overweight (x) 4 | . 1 . . 2 2 1 2 1 4 3 Average Overweight (x) . | . . . . . . . 1 . 1 1 Largest Inventory Capacity 15 | 5 15 10 10 10 15 15 15 5 5 5 Average Capacity 11 | 5 10 10 10 10 14 15 14 5 5 5 Most Carried 15 | 2 10 8 10 10 15 15 15 4 3 . Average Carried 9 | . 4 8 9 7 13 13 12 1 . . Final Capacity 15 | 5 10 10 10 10 15 15 5 5 5 5 Final Carried 15 | 1 8 8 10 10 14 15 4 . . . Class Distribution -------------------- 23% | Scavenger-Skirmisher 22% | Tank 21% | Skirmisher 13% | Mutant 8% | Scavenger-Tank 7% | Gunner 3% | Scavenger-Gunner Dominant Class ---------------- Mutant | -10/Materials Mutant | -10/Mines Skirmisher | -9/Materials Tank | -9/Mines Scavenger-Skirmisher | -8/Materials Scavenger-Skirmisher | -8/Storage Skirmisher | -7/Factory Mutant | -7/Waste Gunner | -7/Factory Mutant | -7/Lower Caves Resources | -11 -10 -10 -9 -9 -8 -8 -7 -7 -7 -7 ----------- Run | Yrd Mat Min Mat Min Mat Sto Fac Was Fac Low Matter Collected 2915 | 248 126 . 96 569 645 747 484 . . . Remotely . | . . . . . . . . . . . Salvage Created 2620 | 48 159 . 156 82 489 763 923 . . . Parts 145 | 3 19 . 15 3 30 40 35 . . . Haulers Intercepted . | . . . . . . . . . . . Recyclers Shooed 5 | . 1 . . . . . 4 . . . Parts Field Recycled 7 | . . . 7 . . . . . . . Retrieved Matter 44 | . . . 44 . . . . . . . Parts Self-Destructed . | . . . . . . . . . . . Prevented . | . . . . . . . . . . . Kills | -11 -10 -10 -9 -9 -8 -8 -7 -7 -7 -7 ------- Run | Yrd Mat Min Mat Min Mat Sto Fac Was Fac Low Combat Hostiles Destroyed 60 | 1 6 . 2 4 9 17 21 . . . Guns 15 | 1 5 . 1 2 2 4 . . . . Cannons 30 | . . . . . 7 13 10 . . . AOE 14 | . 1 . 1 2 . . 10 . . . Classes Destroyed 14 | 1 2 . 2 2 3 2 2 . . . Worker 2 | . . . . 1 1 . . . . . Builder 3 | . . . . . 1 . 2 . . . Recycler 4 | . . . . . 2 . 2 . . . Operator 2 | . . . 1 . . . 1 . . . Watcher 7 | . 1 . 1 . 2 . 3 . . . Swarmer 3 | . 3 . . . . . . . . . Grunt 29 | 1 3 . . 2 5 8 10 . . . Brawler 1 | . . . . . . . 1 . . . Duelist 3 | . . . . . . 1 2 . . . Protector 2 | . . . . . . 1 1 . . . Sentry 14 | . . . 2 . 3 5 4 . . . Demolisher 2 | . . . . 2 . . . . . . Hunter 5 | . . . . . 1 2 2 . . . Programmer 1 | . . . . . . . 1 . . . Best Kill Streak 6 | 1 3 . 1 2 5 4 6 . . . Combat Bots Only 5 | 1 3 . 1 2 2 4 5 . . . Max Kills in Single Turn 2 | 1 2 . 1 1 1 1 2 . . . Gunslinging 1 | . 1 . . . . . . . . . Exploded 2 | . 1 . 1 1 . . 2 . . . Melee . | . . . . . . . . . . . Uniques/NPCs Destroyed . | . . . . . . . . . . . Combat | -11 -10 -10 -9 -9 -8 -8 -7 -7 -7 -7 -------- Run | Yrd Mat Min Mat Min Mat Sto Fac Was Fac Low Hostile Shots Fired 488 | 1 43 . 4 39 61 88 190 10 46 6 Missed 144 | 1 17 . . 4 20 18 72 . 11 1 Damage Taken 5927 | . 275 . 64 1011 677 1201 1577 430 589 103 Core 1211 | . 16 . . 236 69 186 174 338 148 44 Absorbed by Shields . | . . . . . . . . . . . Redirected to Shielding 6 | . 2 . . 4 . . . . . . Regen/Repaired (Parts) 157 | . 11 . . . . . 146 . . . Core Remaining (%) 71 | 100 . 93 . 41 . 53 . . . . Volleys Fired 158 | 1 11 . 7 14 32 34 54 3 . 2 Largest 3 | 2 2 . 3 3 3 3 3 3 . 1 Hottest 165 | 80 90 . 135 143 165 163 145 101 . 25 Shots Fired 433 | 2 21 . 21 41 95 99 147 5 . 2 Gun 128 | 2 18 . 21 33 13 17 18 4 . 2 Cannon 268 | . . . . . 82 82 103 1 . . Launcher 37 | . 3 . . 8 . . 26 . . . Special . | . . . . . . . . . . . Kinetic 207 | . . . 5 13 82 75 25 5 . 2 Thermal 147 | . . . 2 12 13 24 96 . . . Explosive 37 | . 3 . . 8 . . 26 . . . Electromagnetic 42 | 2 18 . 14 8 . . . . . . Robot Hit Streak 13 | 2 5 . 4 5 13 6 9 5 . . Robot Miss Streak 6 | . 2 . 2 5 5 5 6 1 . 5 Penetration Max 1 | . . . . . . 1 . . . . Secondary Targets 3 | . 2 . . 1 . . . . . . Max Gunslinging Chain 1 | . 1 . . 1 . . . . . . Shots Hit Robots 227 | 2 11 . 11 25 54 49 71 4 . . Core Hits 144 | 2 8 . 6 16 25 30 56 1 . . Critical Kills 2 | . . . . . . . 2 . . . Critical Parts Destroyed . | . . . . . . . . . . . Critical Strikes 9 | . . . . 1 3 2 2 1 . . Burn 1 | . . . . 1 . . . . . . Meltdown 2 | . . . . . . . 2 . . . Blast 6 | . . . . . 3 2 . 1 . . Melee Attacks . | . . . . . . . . . . . Impact . | . . . . . . . . . . . Slashing . | . . . . . . . . . . . Piercing . | . . . . . . . . . . . Sneak Attacks . | . . . . . . . . . . . Combat Hostiles . | . . . . . . . . . . . Follow-up Attacks . | . . . . . . . . . . . Damage Inflicted 7505 | 25 465 . 218 442 1181 1233 3826 115 . . Guns 1199 | 25 187 . 162 266 168 154 152 85 . . Cannons 3606 | . . . . . 1013 1070 1493 30 . . Explosions 2690 | . 278 . 56 176 . . 2180 . . . Melee . | . . . . . . . . . . . Ramming 10 | . . . . . . 9 1 . . . Kinetic 2299 | . . . 28 81 983 879 213 115 . . Thermal 2379 | . 49 . 56 134 198 345 1597 . . . Explosive 2302 | . 229 . . 176 . . 1897 . . . Electromagnetic 515 | 25 187 . 134 51 . . 118 . . . Impact . | . . . . . . . . . . . Slashing . | . . . . . . . . . . . Piercing . | . . . . . . . . . . . Highest Corruption 19 | . . . . . . 1 3 19 19 19 Average Corruption 5 | . . . . . . 1 1 13 19 19 Corruption Purged . | . . . . . . . . . . . Corruption Blocked . | . . . . . . . . . . . Effects 56 | . . . . . . 6 10 16 20 4 Message Errors 14 | . . . . . . 1 2 3 7 1 Matter Fused 11 | . . . . . . 1 3 3 4 . Heat Flow Errors 4 | . . . . . . 2 1 1 . . Energy Discharges 8 | . . . . . . . 3 2 1 2 Parts Fused 1 | . . . . . . . . . 1 . Data Loss (minor) 5 | . . . . . . . 1 1 2 1 Data Loss (major) 2 | . . . . . . . . . 2 . Alerts 1 | . . . . . . 1 . . . . Misdirections 8 | . . . . . . . . 5 3 . Weapon Failures 2 | . . . . . . 1 . 1 . . Overload Shots . | . . . . . . . . . . . Overflow Damage 97 | . 23 . . . 14 . 60 . . . Projectiles 22 | . . . . . 14 . 8 . . . Explosions 75 | . 23 . . . . . 52 . . . Melee . | . . . . . . . . . . . Knockbacks 28 | . . . . . 16 12 . . . . Impact . | . . . . . . . . . . . Kinetic 23 | . . . . . 13 10 . . . . Secondary 5 | . . . . . 3 2 . . . . Self-Inflicted Damage 272 | . . . . . . . 272 . . . Shots 10 | . . . . . . . 10 . . . Rammed . | . . . . . . . . . . . Targets Rammed 2 | . . . . . . 1 1 . . . Kicked 2 | . . . . . . 1 1 . . . Crushed . | . . . . . . . . . . . Highest Temperature 439 | 18 66 . 191 359 274 439 332 84 . . Average Temperature 109 | 12 23 . 65 181 66 162 77 50 . . Received Heat Transfer 1902 | . 135 . 18 126 342 567 381 . 333 . Effects 9 | . . . . 4 . 5 . . . . Shutdowns 2 | . . . . . . 2 . . . . Energy Bleed 1 | . . . . . . 1 . . . . Interference 4 | . . . . 3 . 1 . . . . Short Circuit 2 | . . . . 1 . 1 . . . . Siege Activations . | . . . . . . . . . . . Robots Corrupted . | . . . . . . . . . . . Combat Hostiles . | . . . . . . . . . . . Parts Fried 1 | . . . . . . . 1 . . . Impact Corruptions . | . . . . . . . . . . . Robots Melted 2 | . . . . . . . 2 . . . Combat Hostiles 1 | . . . . . . . 1 . . . Parts Melted 6 | . . . . 1 . . 5 . . . Heat Transferred 3396 | . 150 . . 407 399 488 1952 . . . Parts Sabotaged . | . . . . . . . . . . . Parts Stolen . | . . . . . . . . . . . Parts Stripped . | . . . . . . . . . . . Power Chain Reactions 3 | . 1 . 1 . . . 1 . . . Alert | -11 -10 -10 -9 -9 -8 -8 -7 -7 -7 -7 ------- Run | Yrd Mat Min Mat Min Mat Sto Fac Was Fac Low Peak Influence 735 | 20 246 27 97 40 196 370 735 257 109 . Initial 257 | . 13 27 10 24 . 64 97 257 109 . Average 134 | 3 85 27 57 8 80 226 230 192 90 . Maximum Alert Level 3 | . 1 . . . . 1 3 1 . . Low Security (%) 77 | 100 96 100 100 100 100 34 60 66 100 . Level 1 13 | . 3 . . . . 65 12 33 . . Level 2 6 | . . . . . . . 19 . . . Level 3 2 | . . . . . . . 7 . . . Level 4 . | . . . . . . . . . . . Level 5 . | . . . . . . . . . . . High Security . | . . . . . . . . . . . Max Security . | . . . . . . . . . . . Squads Dispatched 17 | . 1 . 2 . 1 2 11 . . . Investigation 4 | . 1 . . . . . 3 . . . Extermination 3 | . . . . . . . 3 . . . Reinforcement 5 | . . . 2 . 1 . 2 . . . Assault 3 | . . . . . . 2 1 . . . Garrison 2 | . . . . . . . 2 . . . Intercept . | . . . . . . . . . . . Searches Triggered . | . . . . . . . . . . . Construction Impeded . | . . . . . . . . . . . Haulers Reinforced . | . . . . . . . . . . . Active Scanning Responses . | . . . . . . . . . . . Cargo Convoy Interrupts 1 | . . . . . . . 1 . . . Stealth | -11 -10 -10 -9 -9 -8 -8 -7 -7 -7 -7 --------- Run | Yrd Mat Min Mat Min Mat Sto Fac Was Fac Low Distress Signals 6 | . 2 . 1 . 2 1 . . . . Communications Jammed . | . . . . . . . . . . . Distress Signals . | . . . . . . . . . . . Times Spotted 114 | 1 11 . 7 4 22 21 37 7 3 1 Peak Tracking Total 9 | 1 4 . 3 2 6 9 6 5 3 1 Tactical Retreats 5 | . 2 . 1 . . . 1 1 . . Traps | -11 -10 -10 -9 -9 -8 -8 -7 -7 -7 -7 ------- Run | Yrd Mat Min Mat Min Mat Sto Fac Was Fac Low Traps Triggered 10 | . . . . 1 . 4 5 . . . Indirectly . | . . . . . . . . . . . Trap Hack Attempts . | . . . . . . . . . . . Triggered . | . . . . . . . . . . . Disarmed . | . . . . . . . . . . . Reprogrammed . | . . . . . . . . . . . Reused . | . . . . . . . . . . . Traps Extracted . | . . . . . . . . . . . Installed . | . . . . . . . . . . . Triggered 1 | . . . . . . . 1 . . . Machines | -11 -10 -10 -9 -9 -8 -8 -7 -7 -7 -7 ---------- Run | Yrd Mat Min Mat Min Mat Sto Fac Was Fac Low Machines Disabled 17 | . . . 1 . . 3 13 . . . Max in Single Turn 4 | . . . 1 . . 1 4 . . . Garrison Access 1 | . . . . . . . 1 . . . Machines Repaired . | . . . . . . . . . . . Machines Dismantled . | . . . . . . . . . . . Machines Sabotaged . | . . . . . . . . . . . Overloaded Fab Kills . | . . . . . . . . . . . Hacking | -11 -10 -10 -9 -9 -8 -8 -7 -7 -7 -7 --------- Run | Yrd Mat Min Mat Min Mat Sto Fac Was Fac Low Machines Accessed 22 | . 4 . 1 1 . 5 10 . 1 . Terminals 13 | . 3 . 1 . . 3 5 . 1 . Fabricators 1 | . . . . . . . 1 . . . Repair Stations 3 | . 1 . . . . 1 1 . . . Recycling Units 2 | . . . . . . 1 1 . . . Scanalyzers 1 | . . . . . . . 1 . . . Garrison Access 1 | . . . . . . . 1 . . . Total Hacks 58 | . 15 . 1 1 . 14 25 . 2 . Successful 31 | . 9 . 1 1 . 5 14 . 1 . Failed 27 | . 6 . . . . 9 11 . 1 . Catastrophic 3 | . 1 . . . . 1 1 . . . Database Lockouts . | . . . . . . . . . . . Manual 4 | . . . 2 . . 2 . . . . Terminals 33 | . 10 . 1 . . 9 11 . 2 . Fabricators 1 | . . . . . . . 1 . . . Repair Stations 10 | . 5 . . . . 3 2 . . . Recycling Units 9 | . . . . . . 2 7 . . . Scanalyzers 2 | . . . . . . . 2 . . . Garrison Access 2 | . . . . . . . 2 . . . Terminal Hacks 15 | . 4 . 1 1 . 2 6 . 1 . Record 5 | . 3 . . . . . 1 . 1 . Part Schematic 1 | . . . . . . . 1 . . . Open Door 2 | . . . . 1 . 1 . . . . Open DSF 2 | . . . . . . . 2 . . . Alert Level 1 | . . . 1 . . . . . . . Maintenance Status 1 | . . . . . . . 1 . . . Patrol Status 1 | . 1 . . . . . . . . . Recall Extermination 1 | . . . . . . 1 . . . . Recall Reinforcements 1 | . . . . . . . 1 . . . Fabricator Hacks . | . . . . . . . . . . . Repair Station Hacks 9 | . 5 . . . . 2 2 . . . Scan Component 5 | . 2 . . . . 2 1 . . . Repair 3 | . 2 . . . . . 1 . . . Refit 1 | . 1 . . . . . . . . . Recycling Unit Hacks 6 | . . . . . . 1 5 . . . Recycle Component 1 | . . . . . . . 1 . . . Process 2 | . . . . . . . 2 . . . Report Inventory 2 | . . . . . . 1 1 . . . Retrieve Components 1 | . . . . . . . 1 . . . Scanalyzer 1 | . . . . . . . 1 . . . Insert Component 1 | . . . . . . . 1 . . . Garrison Access Hacks . | . . . . . . . . . . . Unauthorized Hacks . | . . . . . . . . . . . Terminals . | . . . . . . . . . . . Fabricators . | . . . . . . . . . . . Repair Stations . | . . . . . . . . . . . Recycling Units . | . . . . . . . . . . . Scanalyzers . | . . . . . . . . . . . Garrison Access . | . . . . . . . . . . . Data Cores Recovered 2 | . . . 1 . 1 . . . . . Used 1 | . . . 1 . . . . . . . Hacking Detections 19 | . 3 . 1 . . 6 8 . 1 . Full Trace Events 5 | . 2 . . . . . 3 . . . Feedback Events 1 | . . . . . . . 1 . . . Corruption 1 | . . . . . . . 1 . . . Feedback Blocked . | . . . . . . . . . . . Robot Schematics Acquired . | . . . . . . . . . . . Robots Built . | . . . . . . . . . . . Authchips . | . . . . . . . . . . . Time . | . . . . . . . . . . . Total Robot Build Rating . | . . . . . . . . . . . Part Schematics Acquired 1 | . . . . . . . 1 . . . Parts Built . | . . . . . . . . . . . Authchips . | . . . . . . . . . . . Time . | . . . . . . . . . . . Total Part Build Rating . | . . . . . . . . . . . Parts Repaired 3 | . 2 . . . . . 1 . . . Time 90 | . 52 . . . . . 38 . . . Parts Recycled 1 | . . . . . . . 1 . . . Recycled Matter 90 | . . . . . . . 90 . . . Retrieved Matter . | . . . . . . . . . . . Retrieved Components . | . . . . . . . . . . . Parts Scanalyzed 1 | . . . . . . . 1 . . . Part Schematics Acquired . | . . . . . . . . . . . Parts Damaged 1 | . . . . . . . 1 . . . Bothacking | -11 -10 -10 -9 -9 -8 -8 -7 -7 -7 -7 ------------ Run | Yrd Mat Min Mat Min Mat Sto Fac Was Fac Low Used RIF Installer . | . . . . . . . . . . . Robots Hacked . | . . . . . . . . . . . Non-combat . | . . . . . . . . . . . Combat . | . . . . . . . . . . . Robot Hacks Applied . | . . . . . . . . . . . Relay Couplers Released 1 | . . . . . . . 1 . . . Machine Destruction 1 | . . . . . . . 1 . . . Fabnet Peak Effective % . | . . . . . . . . . . . Robots Rewired . | . . . . . . . . . . . Allies Hacked . | . . . . . . . . . . . Hacks Repelled . | . . . . . . . . . . . Allies | -11 -10 -10 -9 -9 -8 -8 -7 -7 -7 -7 -------- Run | Yrd Mat Min Mat Min Mat Sto Fac Was Fac Low Total Allies 7 | . . . . 4 . 2 . 1 . . Largest Group 3 | . . . . 3 2 2 . 1 . . Highest-Rated Group 62 | . . . . 40 24 62 . 31 . . Highest-Rated Ally 31 | . . . . 16 16 31 . 31 . . Total Orders 7 | . . . . 7 . . . . . . STAY 3 | . . . . 3 . . . . . . FOLLOW 3 | . . . . 3 . . . . . . GUARD 1 | . . . . 1 . . . . . . Ally Attacks 35 | . . . . . 15 16 . 4 . . Total Damage 543 | . . . . . 140 317 . 86 . . Kills 3 | . . . . . 1 2 . . . . Allies Corrupted . | . . . . . . . . . . . Allies Melted . | . . . . . . . . . . . Intel | -11 -10 -10 -9 -9 -8 -8 -7 -7 -7 -7 ------- Run | Yrd Mat Min Mat Min Mat Sto Fac Was Fac Low Robot Analysis Total . | . . . . . . . . . . . Derelict Logs Recovered 2 | . . . . 2 . . . . . . Drone Launches . | . . . . . . . . . . . Drone Recoveries . | . . . . . . . . . . . Exploration | -11 -10 -10 -9 -9 -8 -8 -7 -7 -7 -7 ------------- Run | Yrd Mat Min Mat Min Mat Sto Fac Was Fac Low Turns Passed 7312 | 85 466 141 478 1482 602 910 2395 203 480 70 Spaces Moved 3672 | 69 277 89 236 690 260 400 1073 195 322 61 Core 564 | 19 . . . . . . . 162 322 61 Treads 766 | . 95 89 236 346 . . . . . . Legs 2342 | 50 182 . . 344 260 400 1073 33 . . Wheels . | . . . . . . . . . . . Hover . | . . . . . . . . . . . Flight . | . . . . . . . . . . . Fastest Speed 50 | 50 120 160 160 160 126 126 190 50 50 50 Average Speed 173 | 100 143 160 160 200 166 179 199 94 146 107 Slowest Speed 260 | 120 190 160 160 260 260 196 260 190 250 200 Overloaded Moves . | . . . . . . . . . . . Propulsion Burnouts . | . . . . . . . . . . . Robots Hopped . | . . . . . . . . . . . Cave-ins Triggered . | . . . . . . . . . . . Exploration Rate (%) 33 | 5 45 21 22 84 24 41 33 81 8 5 Regions Visited 10 Branch Regions 4 Pre-discovered Areas . | . . . . . . . . . . . Known Exits Taken . | . . . . . . . . . . . Unknown Exits Taken 8 | 1 1 1 1 1 1 1 . . 1 . Scrap Searched 3 | . . . . 3 . . . . . . Spaces Dug 9 | . . . . . . . 9 . . . Terrain Destroyed 331 | . 18 . 4 18 10 12 269 . . . Melee . | . . . . . . . . . . . Projectile 38 | . . . . . 10 12 16 . . . AOE 293 | . 18 . 4 18 . . 253 . . . Terrain Rammed . | . . . . . . . . . . . Walls Destroyed . | . . . . . . . . . . . Machines Disabled . | . . . . . . . . . . . Actions | -11 -10 -10 -9 -9 -8 -8 -7 -7 -7 -7 --------- Run | Yrd Mat Min Mat Min Mat Sto Fac Was Fac Low Total 4266 | 82 325 88 321 761 359 515 1214 207 331 63 Wait 126 | 2 2 . 39 21 3 27 32 . . . Move 3663 | 68 276 88 235 689 259 399 1073 194 321 61 Hop . | . . . . . . . . . . . Pick Up 106 | 6 18 . 15 13 19 16 11 3 5 . Fast Attach 3 | . . . . . 2 . 1 . . . Attach 57 | 5 7 . 3 10 3 6 11 7 5 . Detach 2 | . . . . 1 . . 1 . . . Swap 63 | . 5 . 11 6 21 13 7 . . . Drop 66 | . 6 . 11 7 20 9 13 . . . Fire 158 | 1 11 . 7 14 32 34 54 3 . 2 Melee . | . . . . . . . . . . . Ram . | . . . . . . . . . . . Kick 2 | . . . . . . 1 1 . . . Crush . | . . . . . . . . . . . Escape Stasis 20 | . . . . . . 10 10 . . . Rewire . | . . . . . . . . . . . Trap . | . . . . . . . . . . . Miscellaneous . | . . . . . . . . . . . Route ------- -11/Scrapyard -10/Materials -10/Mines -9/Materials -9/Mines (discovered 2 exits: [*Mat x2]) -8/Materials -8/Storage -7/Factory -7/Waste -7/Factory -7/Lower Caves History --------- Turn | Location | Event 2 | -11/Scrapyard | Met Revision 17 65 | -11/Scrapyard | Discovered new exit (range 8) 86 | -11/Scrapyard | Entered Materials 319 | -10/Materials | Build established: Mutant 319 | -10/Materials | Discovered new exit (range 13) 399 | -10/Materials | Repaired Lgt. Ion Engine 425 | -10/Materials | Repaired Lgt. Ion Engine? 552 | -10/Materials | Entered Mines 688 | -10/Mines | Discovered new exit (range 3) 693 | -10/Mines | Entered Materials 693 | -9/Materials | Evolved 2 slots: Power x1, Weapon x1 1154 | -9/Materials | Discovered new exit (range 6) 1171 | -9/Materials | Entered Mines 1223 | -9/Mines | Learned Materials emergency access door positions 1298 | -9/Mines | Received a Rocket Launcher from a helpful Derelict 1341 | -9/Mines | Build established: Skirmisher 1379 | -9/Mines | Assembled infested the area 1486 | -9/Mines | Received a Mining Laser from a helpful Derelict 1531 | -9/Mines | Lost 3 parts (2n1w) 1534 | -9/Mines | Core integrity fell below 50% 1825 | -9/Mines | Build established: Tank 1967 | -9/Mines | Discovered new exit (range 7) 2062 | -9/Mines | Discovered new exit (range 5) 2081 | -9/Mines | Assisted by bots powering up and referring to "LRC-V3" 2154 | -9/Mines | Met a Derelict who couldn't figure out how to use a Trap Extractor 2282 | -9/Mines | Learned Materials trap positions 2653 | -9/Mines | Entered Materials 2653 | -8/Materials | Accompanied by 2 allies 2653 | -8/Materials | Evolved 2 slots: Propulsion x1, Utility x1 2654 | -8/Materials | Loaded intel: 22 trap records 3080 | -8/Materials | Build established: Scavenger-Skirmisher 3232 | -8/Materials | Discovered new exit (range 6) 3255 | -8/Materials | Entered Storage 3268 | -8/Storage | Met a pair of Derelict thieves 3435 | -8/Storage | Lost 5 parts (2p1n2w) 4148 | -8/Storage | Discovered new exit (range 9) 4165 | -8/Storage | Entered Factory 4165 | -7/Factory | Evolved 2 slots: Utility x2 4208 | -7/Factory | Discovered new exit (range 10) 4720 | -7/Factory | Repaired Hvy. Armor Plating 4840 | -7/Factory | Build established: Skirmisher 5617 | -7/Factory | Build established: Scavenger-Skirmisher 5812 | -7/Factory | Garrison activated, responded to threat 5887 | -7/Factory | Lost 3 parts (1p2n) 5929 | -7/Factory | Cargo convoy interrupted 6237 | -7/Factory | Build established: Scavenger-Tank 6416 | -7/Factory | Lost 3 parts (1n1u1w) 6560 | -7/Factory | Sucked down chute 6560 | -7/Factory | Entered Waste 6561 | -7/Waste | Met a frightened Derelict 6572 | -7/Waste | Spotted C-40 Crusher 6574 | -7/Waste | Spotted C-40 Crusher 6575 | -7/Waste | EMP discharged 6575 | -7/Waste | System corruption reached 10% 6594 | -7/Waste | Spotted C-40 Crusher 6621 | -7/Waste | Crushed by Compactor (1 part destroyed, 1 dropped) 6626 | -7/Waste | Crushed by Compactor (1 part destroyed, 2 dropped) 6629 | -7/Waste | Crushed by Compactor (1 part destroyed, 2 dropped) 6632 | -7/Waste | Crushed by Compactor (1 part destroyed, 2 dropped) 6635 | -7/Waste | Crushed by Compactor (1 part destroyed, 1 dropped) 6638 | -7/Waste | Core integrity fell below 50% 6640 | -7/Waste | Crushed by Compactor (1 part destroyed, 1 dropped) 6671 | -7/Waste | Lost 7 parts (2p2u3w) 6675 | -7/Waste | EMP discharged 6704 | -7/Waste | Spotted C-40 Crusher 6728 | -7/Waste | Spotted C-40 Crusher 6744 | -7/Waste | Spotted C-40 Crusher 6752 | -7/Waste | Crushed by Compactor (1 part destroyed) 6755 | -7/Waste | Discovered new exit (range 16) 6763 | -7/Waste | Entered Factory 6954 | -7/Factory | Discovered new exit (range 6) 7069 | -7/Factory | Build established: Gunner 7194 | -7/Factory | Core integrity fell below 20% 7243 | -7/Factory | Entered Lower Caves 7313 | -7/Lower Caves | Destroyed by GL-ME8(f) with Tearclaws Last Messages --------------- 07062_ System corrupted: Matter fused (-7). 07079_ System corrupted: Component data lost. 07137_ 5YW AMRM,V=X:B4E9Y0/E5SW46 07160_ Hacking Suite destroyed. 07179_ System corrupted: Component data lost. 07204_ >L0RXC5LF0ZK47Z9JPAP&5 3GCRRGP,SHYGJ 07224_ VG:QH0KQX%=I4F B45VI 07233_ Hpw. Shotgun destroyed. 07236_ Critical hit (Burn: +37). 07239_ Hpw. Shotgun destroyed. LOCATION=UNKNOWN GOAL=ESCAPE 07247_ System corrupted: Energy discharge (-40). 07267_ System corrupted: Energy discharge (-24). 07282_ System corrupted: Component data lost. 07291_ Hpw. Shotgun destroyed. 07294_ Hvy. Rocket Launcher destroyed. 07301_ VZO52LHRLXTO<, LIYQWN,W:Y C2HLPXY2B6CDT3 [Achievement: First Step to Greatness] [Achievement: 5k Club] Map ----- +----------------------------------------------------+ | ?????????????????????????????????????????????????? | | ?????????????????????????????????????????????????? | | ?????????????????????????????????????????????????? | | ?????????????????????????????????????????????????? | | ?????????????????????????????????????????????????? | | ?????????????????????????????????????????????????? | | ?????????????????????????????????????????????????? | | ?????????????????????????????????????????????????? | | ?????????????????????????????????????????????????? | | ?????????????????????????????????????????????????? | | ?????????????????????????????????????????????????? | | ?????????????????????????????????????????????????? | | ?????????????????????????#???????????????????????? | | ????????????????????????? ???????????????????????? | | ????????????????????????? ???????????????????????? | | ????????????????????????? ???????????????????????? | | ????????????????????????? ???????????????????????# | | ????????????????????????# #??????????????????????# | | ????????????????????????# #??????????????????????# | | ????????????????????????# #??????????????????????# | | ????????????????????????# #?????????????????????## | | ????????????????????????# #?????????????????##### | | ????????????????????????# #???????????????### | | ????????????????????????# #???????????????# | | ????????????????????????# #???????????????### # | | ?????????????????????####@##############????## # | | ?????????????????????# f #?????# ## | | ?????????????????????# ############# ####### | | ?????????????????? #????????????# # | | ??????????????? #?????????????########## | | ??????????????## ##???????????????????????#### | | ???????????????######????????????????????????????? | | ?????????????????????????????????????????????????? | | ?????????????????????????????????????????????????? | | ?????????????????????????????????????????????????? | | ?????????????????????????????????????????????????? | | ?????????????????????????????????????????????????? | | ?????????????????????????????????????????????????? | | ?????????????????????????????????????????????????? | | ?????????????????????????????????????????????????? | | ?????????????????????????????????????????????????? | | ?????????????????????????????????????????????????? | | ?????????????????????????????????????????????????? | | ?????????????????????????????????????????????????? | | ?????????????????????????????????????????????????? | | ?????????????????????????????????????????????????? | | ?????????????????????????????????????????????????? | | ?????????????????????????????????????????????????? | | ?????????????????????????????????????????????????? | | ?????????????????????????????????????????????????? | +----------------------------------------------------+ Best States ------------- Heat Dissipation 76 Coolant Potential 65 Energy Generation 23 Energy Capacity 445 Matter Stores 300 Matter Capacity 300 Sight Range 16 Robot Scan Range 15 Terrain Scan Range 14 Terrain Scan Density 85 Armor Coverage 600 Core Shielding 20 Propulsion Shielding 33 Evasion (%) 55 Recoil Reduction 2 Offensive Hacking 10 Item Schematics ----------------- Hvy. Plasma Cannon | -7/Factory | Hacked Robot Schematics ------------------ None Fabricated ------------ Nothing Alien Tech Used ----------------- None Achievements -------------- 5k Club Crack Shot Dynamic Key First Step to Greatness GoHome() Hey, That's Mine! I Spy It's Just You Made in Tau Ceti IV One Hack Too Far Part-time Mechanic Please Form A Line Remodeling Risk Taker Storm Trooper System Compromised Tourist Uninvited Guest Challenges ------------ None Game ------ Seed ImprovedStorageKatana Manual? 0 Play Time 03:33:09 Cumulative 3.5 hours Start 2024.05.15 @ 22:55:50 End 2024.05.16 @ 03:02:21 Sessions 1 Manual Loads 0 Difficulty Rogue Special Mode None Game No. 1 Rogue 1 Adventurer 0 Explorer 0 Win Type - Total 0 Types 0/0/0/0/0/0/0/0/0 Lore% 0 Gallery% 5 Achievement% 7 Wizard Run 0 Options --------- Layout 1 ASCII 0 Keyboard 0 Movement Mouse Keybinds 0 Fullscreen 2 Font 32/SmallcapsGlow Map View 50x35 Zoom Use 0% Tactical HUD 1 Map Filters NONE Filters NONE Steam 0 RUN: ead317e7-45fc-4ec1-b06a-e18c53768de4